fUSD/lending_fUSD_20241019
["ID","MTS","AMOUNT","RATE_DAILY","PERIOD"]
[340497391,1729347043900,-195.616323,0.0002387,7]
[340497392,1729347043910,-195.616323,0.0002387,7]
[340497393,1729347043919,-225.846342,0.0002387,7]
[340497394,1729347043928,-245.762402,0.0002387,7]
[340497395,1729347043937,-151.0,0.0002387,7]
[340497396,1729347043947,-245.762402,0.0002387,7]
[340497397,1729347043956,-207.983119,0.0002387,7]
[340497398,1729347043966,-151.0,0.0002387,7]
[340497399,1729347043976,-207.983119,0.0002387,7]
[340497400,1729347043986,-164.474077,0.0002387,7]
[340497401,1729347043997,-164.474077,0.0002387,7]
[340497402,1729347044006,-151.0,0.0002387,7]
[340497403,1729347044016,-175.040301,0.0002387,7]
[340497404,1729347044026,-175.040301,0.0002387,7]
[340497405,1729347044035,-151.47,0.0002387,2]
[340497406,1729347044045,-500.0,0.00023873,2]
[340497407,1729347044054,-150.16584261,0.00023873,2]
[340497408,1729347044064,-4672.62785475,0.0002388,2]
[340497409,1729347044076,-719.94469193,0.0002388,2]
[340497410,1729347044089,-327.32863549,0.0002388,2]
[340497411,1729347044100,-290.09999973,0.0002388,2]
[340497412,1729347045948,-159.685392,0.00023549,7]
[340497413,1729347045959,-159.685392,0.00023559,7]
[340497414,1729347045968,-159.685392,0.00023648,7]
[340497415,1729347045978,-159.685392,0.00023658,7]
[340497416,1729347045987,-159.685392,0.00023669,7]
[340497417,1729347045996,-12689.89584,0.0002388,2]
[340497432,1729347052240,150.0,0.00016989,2]
[340497433,1729347090159,1960.18519005,0.000214,5]
[340497434,1729347167579,488.29321961,0.0002,120]
[340497435,1729347908204,615686.65647504,0.00011,2]
[340497436,1729347925527,974.86392215,0.000108,2]
[340497437,1729347982323,253.24,0.00024892,120]
[340497438,1729348046150,-150.0,0.00012697,2]
[340497439,1729348046172,-708.22113758,0.0001291,5]
[340497440,1729348054091,-284.94767654,0.0001291,5]
[340497441,1729348054112,-316.7033419,0.00015,2]
[340497442,1729348054138,-154.75,0.00016712,2]
[340497443,1729348054161,-300.0,0.00018499,2]
[340497444,1729348054184,-1364.0,0.000197,3]
[340497445,1729348054207,-268.0,0.00020174,2]
[340497446,1729348054232,-3866.86675059,0.000203,3]
[340497447,1729348083628,7538.58492074,0.00011,2]
[340497448,1729348145209,-38481.21133037,0.00011,2]
[340497449,1729348145230,-150.0,0.00016981,2]
[340497450,1729348145254,-3830.0,0.000204,3]
[340497451,1729348145275,-499.99,0.00020511,2]
[340497452,1729348145296,-392.49,0.00020511,2]
[340497453,1729348145317,-11519.0,0.000209,5]
[340497454,1729348145337,-214.22,0.00021697,2]
[340497455,1729348145358,-2007.81,0.00021791,2]
[340497456,1729348145378,-229.72,0.00021937,2]
[340497457,1729348145399,-250.0,0.00022,30]
[340497458,1729348145419,-250.0,0.00022,30]
[340497459,1729348145439,-250.0,0.00022,30]
[340497460,1729348145461,-253.24,0.00022126,2]
[340497461,1729348145482,-250.0,0.00022198,2]
[340497462,1729348145502,-164.828927,0.00022301,2]
[340497463,1729348145523,-640.0,0.00022407,2]
[340497468,1729348178315,150.0,0.00016989,2]
[340497475,1729348219982,150.0,0.00016992,2]
[340497476,1729348223341,176.88,0.00016438,2]
[340497504,1729348232192,-156.69,0.0002268,30]
[340497506,1729348232202,-171.0,0.00022774,2]
[340497507,1729348232211,-392.49,0.00022775,2]
[340497508,1729348232220,-8.18308549,0.0002298,2]
[340497509,1729348232231,-158.90691451,0.0002298,2]
[340497510,1729348232240,-360.0,0.0002312,2]
[340497511,1729348232250,-1000.0,0.000232,2]
[340497512,1729348232262,-221.96023647,0.0002367,2]
[340497513,1729348232271,-830.5143,0.0002367,2]
[340497514,1729348232281,-1057.7782,0.0002367,2]
[340497515,1729348232291,-182.4143,0.0002367,2]
[340497516,1729348232300,-1000.0,0.0002367,2]
[340497517,1729348232309,-261.8944,0.0002367,2]
[340497518,1729348232319,-2500.0,0.0002367,2]
[340497519,1729348232328,-150.0,0.00023679,2]
[340497520,1729348232338,-7500.0,0.0002368,2]
[340497521,1729348232347,-150.53,0.0002376,3]
[340497522,1729348232357,-451.64,0.0002376,3]
[340497523,1729348232366,-500.0,0.00023769,2]
[340497524,1729348232375,-500.0,0.00023769,2]
[340497525,1729348232385,-500.0,0.00023769,2]
[340497527,1729348232394,-500.0,0.00023769,2]
[340497528,1729348232404,-567.94155299,0.00023769,2]
[340497530,1729348232414,-444.69186588,0.00023769,2]
[340497532,1729348232423,-437.94362963,0.00023769,2]
[340497534,1729348232432,-242499.417627,0.0002377,5]
[340497536,1729348232442,-165719.25763,0.0002377,5]
[340497538,1729348232451,-151.48,0.0002377,2]
[340497539,1729348232460,-151.48,0.0002377,2]
[340497540,1729348232469,-151.48,0.0002377,2]
[340497541,1729348232478,-154.67394876,0.0002377,2]
[340497543,1729348232488,-7480.38243281,0.0002377,2]
[340497544,1729348232497,-172.01119228,0.00023773,2]
[340497545,1729348232507,-13467.38936986,0.0002378,2]
[340497546,1729348232519,-409.081671,0.0002378,2]
[340497547,1729348232539,-12259.16475914,0.0002378,2]
[340497548,1729348232548,-5876.3556,0.0002378,2]
[340497549,1729348232563,-20746.57964082,0.0002378,2]
[340497550,1729348232576,-6415.10292908,0.0002378,2]
[340497553,1729348239188,-277.74998939,0.00023773,2]
[340497554,1729348239198,-306.56054074,0.00023779,2]
[340497555,1729348239207,-28067.97561397,0.0002378,2]
[340497556,1729348239981,-1335.29980942,0.0002378,2]
[340497557,1729348240303,-396.17500001,0.0002378,2]
[340497566,1729348243348,-1128.79405328,0.0002378,2]
[340497569,1729348246011,-272.704,0.0002378,2]
[340497570,1729348246094,-277.74998939,0.0002378,2]
[340497571,1729348261902,150.0,0.00016996,2]
[340497572,1729348303786,150.0,0.00016999,2]
[340497573,1729348815630,163.48929591,0.0001,2]
[340497574,1729348815651,86.51070409,0.0001,2]
[340497575,1729349225140,-163.41,0.00010959,2]
[340497576,1729349225160,-163.95,0.00010959,2]
[340497577,1729349225181,-7.16407099,0.00012,2]
[340497585,1729349372114,-150.0,0.00010642,2]
[340497586,1729349372136,-292.83592901,0.00012,2]
[340497587,1729349372156,-176.88,0.00016438,2]
[340497588,1729349372176,-477.20756348,0.00017259,2]
[340497589,1729349372196,-26625.92508751,0.0001726,10]
[340497590,1729349372223,-65093.51553112,0.0001726,10]
[340497591,1729349372245,-369.69,0.00019689,2]
[340497592,1729349372265,-715.0,0.000197,3]
[340497593,1729349372285,-150.99,0.00019726,2]
[340497594,1729349372305,-499.99,0.00019726,2]
[340497595,1729349372325,-150.0,0.00020938,2]
[340497596,1729349372346,-8281.92,0.00021061,2]
[340497597,1729349372365,-150.0,0.00021196,2]
[340497598,1729349372385,-150.0,0.00021425,2]
[340497599,1729349372405,-250.0,0.00021443,2]
[340497600,1729349372425,-171.0,0.00021454,2]
[340497601,1729349372446,-250.0,0.00021464,2]
[340497602,1729349372465,-451.25,0.00021464,2]
[340497603,1729349372485,-150.99,0.00021464,2]
[340497604,1729349372506,-1000.0,0.00021532,2]
[340497605,1729349372526,-500.0,0.0002175,2]
[340497606,1729349372545,-500.0,0.0002175,2]
[340497607,1729349372566,-369.69,0.00021953,2]
[340497608,1729349372587,-152.85,0.0002198,3]
[340497609,1729349372607,-458.57,0.0002198,3]
[340497610,1729349372627,-367.78875934,0.00021989,2]
[340497611,1729349372648,-305.7,0.0002199,3]
[340497612,1729349372672,-173.64348996,0.0002199,2]
[340497613,1729349372697,-151.48,0.0002199,2]
[340497614,1729349372718,-151.48,0.0002199,2]
[340497615,1729349372738,-134598.30061,0.0002199,4]
[340497616,1729349372758,-500.0,0.00021999,2]
[340497617,1729349372778,-500.93677726,0.00021999,2]
[340497618,1729349372798,-66028.65456461,0.00022,5]
[340497633,1729349432330,-217.175,0.00017021,2]
[340497634,1729349432339,-60617.82500007,0.00022,5]
[340497635,1729349432530,-2334.5094762,0.00022,5]
[340497655,1729349439759,-754.6803,0.00022,5]
[340497672,1729349440164,-1365.94,0.00022,5]
[340497673,1729349440235,-1787.70249,0.00022,5]
[340497674,1729349440247,-5666.17967787,0.00022,5]
[340497675,1729349440259,-27089.17785513,0.00022,5]
[340497676,1729349440270,-1518.24201,0.00022,5]
[340497677,1729349440281,-1363.68834929,0.00022,5]
[340497678,1729349440292,-2023.404,0.00022,5]
[340497679,1729349440307,-1718.65167653,0.00022,5]
[340497680,1729349440430,-999.9047892,0.00022,5]
[340497681,1729349440442,-11823.23636779,0.00022,5]
[340497682,1729349440453,-2414.47484465,0.00022,5]
[340497683,1729349440464,-13026.98897814,0.00022,5]
[340497701,1729349443436,-386.381532,0.0002189,2]
[340497702,1729349443446,-7060.05390985,0.00022,5]
[340497703,1729349443458,-2590.38490477,0.00022,5]
[340497704,1729349443470,-4295.88013318,0.00022,5]
[340497706,1729349446176,-13204.84984782,0.00022,5]
[340497708,1729349446302,-510.72156263,0.00022,5]
[340497709,1729349446340,-3614.94302904,0.00022,5]
[340497731,1729349738783,186.14,0.0002476,120]
[340497732,1729350332390,194.41,0.0002631,120]
[340497733,1729350445138,-375.9,0.00019291,2]
[340497734,1729350445158,-250.0,0.00020856,2]
[340497735,1729350445180,-31.15205089,0.00021048,2]
[340497736,1729350563139,-150.0,0.00017113,2]
[340497737,1729350563161,-150.0,0.00020734,2]
[340497738,1729350563180,-3634.2,0.00020794,2]
[340497739,1729350563201,-23900.0,0.00020868,2]
[340497740,1729350563221,-711.1,0.0002089,2]
[340497741,1729350563242,-163.25794911,0.00021048,2]
[340497742,1729350563263,-662.88,0.00021109,2]
[340497743,1729350563285,-1688.22,0.00021203,2]
[340497744,1729350563305,-229.7,0.00021203,2]
[340497745,1729350563325,-7000.0,0.00021268,2]
[340497746,1729350563345,-250.0,0.00021331,2]
[340497747,1729350563366,-2610.21,0.0002135,2]
[340497748,1729350563386,-262.01,0.0002135,2]
[340497749,1729350563407,-250.0,0.00021406,2]
[340497750,1729350563428,-450.0,0.00021426,2]
[340497751,1729350563449,-1000.0,0.00021427,2]
[340497752,1729350563470,-1160.95,0.00021468,2]
[340497753,1729350563492,-3289.73,0.00021468,2]
[340497754,1729350563514,-150.0,0.00021511,2]
[340497755,1729350563535,-375.9,0.00021555,2]
[340497756,1729350563557,-150.0,0.00021713,2]
[340497757,1729350563576,-500.0,0.00021918,2]
[340497758,1729350563597,-150.0,0.00021941,2]
[340497759,1729350563616,-152.85,0.0002199,3]
[340497760,1729350563636,-458.55,0.0002199,3]
[340497761,1729350563655,-186.44,0.0002199,2]
[340497762,1729350563676,-500.0,0.00021999,2]
[340497763,1729350563695,-351.33215116,0.00021999,2]
[340497764,1729350563716,-84201.20389973,0.00022,5]
[340497765,1729350619133,150.0,0.0001,2]
[340497766,1729350619155,100.0,0.0001,2]
[340497768,1729350632385,-300.0,0.00012,2]
[340497770,1729350632395,-350.0,0.00014,2]
[340497772,1729350632405,-4889.0,0.000218,5]
[340497774,1729350632415,-3301.36632373,0.00021908,2]
[340497775,1729350632425,-798.65820147,0.00022,5]
[340497776,1729350632437,-2168.33737172,0.00022,5]
[340497777,1729350632558,-73.00578348,0.00022,5]
[340497778,1729350632570,-345.5,0.00022,5]
[340497779,1729350632582,-163677.63097683,0.00022,5]
[340497780,1729350632591,-186.14,0.00022009,2]
[340497781,1729350632601,-150.0,0.0002209,2]
[340497782,1729350632611,-156.48,0.00022137,30]
[340497783,1729350632620,-3301.3663237,0.0002224,2]
[340497784,1729350632630,-3570.57,0.0002224,2]
[340497785,1729350632639,-199.49,0.00022411,2]
[340497786,1729350632649,-150.0,0.00022433,2]
[340497787,1729350632658,-250.0,0.0002245,2]
[340497788,1729350632667,-200.0,0.00022524,2]
[340497789,1729350632677,-150.0,0.00022548,2]
[340497790,1729350632686,-3301.3663237,0.00022573,2]
[340497791,1729350632696,-167.31,0.00022712,2]
[340497792,1729350632705,-150.0,0.00022842,2]
[340497793,1729350632715,-3301.3663237,0.00022905,2]
[340497794,1729350632724,-382.0,0.00022939,2]
[340497795,1729350632733,-150.0,0.00022998,2]
[340497796,1729350632742,-1581.46031956,0.00023,23]
[340497797,1729350632752,-239.34,0.00023015,2]
[340497798,1729350632762,-3301.3663237,0.00023238,2]
[340497799,1729350632772,-150.0,0.00023293,2]
[340497800,1729350632781,-305.7,0.0002336,3]
[340497801,1729350632790,-12372.9087641,0.00023526,5]
[340497803,1729350632799,-186.44,0.00023526,2]
[340497804,1729350632809,-48583.34300607,0.00023536,10]
[340497806,1729350632818,-3301.3663237,0.0002357,2]
[340497808,1729350632827,-1000.6637,0.00023649,2]
[340497810,1729350632837,-151.0,0.0002367,7]
[340497813,1729350632846,-151.0,0.0002367,7]
[340497816,1729350632855,-227.166135,0.0002367,7]
[340497817,1729350632865,-501.88029257,0.00023673,2]
[340497819,1729350632874,-194.41,0.00023679,2]
[340497821,1729350632884,-151.0,0.0002368,7]
[340497823,1729350632894,-151.0,0.0002368,7]
[340497824,1729350632904,-151.0,0.0002368,7]
[340497826,1729350632913,-151.0,0.0002368,7]
[340497828,1729350632922,-151.0,0.0002368,7]
[340497829,1729350632934,-151.0,0.0002368,7]
[340497831,1729350632944,-151.0,0.0002368,7]
[340497833,1729350632953,-151.0,0.0002368,7]
[340497834,1729350632963,-12372.9087641,0.00023751,5]
[340497836,1729350632975,-1000.0,0.00023761,2]
[340497838,1729350632985,-1000.0,0.00023761,2]
[340497840,1729350632994,-1000.0,0.00023761,2]
[340497842,1729350633003,-1000.0,0.00023761,2]
[340497843,1729350633014,-1000.0,0.00023761,2]
[340497845,1729350633024,-1000.0,0.00023761,2]
[340497847,1729350633034,-300.8041,0.00023761,2]
[340497848,1729350633044,-150.0,0.00023769,2]
[340497850,1729350633054,-151.0,0.0002377,7]
[340497852,1729350633063,-166.54153586,0.0002377,2]
[340497854,1729350633073,-1970.96970042,0.0002377,2]
[340497856,1729350633083,-500.0,0.00023773,2]
[340497858,1729350633094,-510.72156263,0.00023773,2]
[340497860,1729350633104,-159.89061165,0.0002378,2]
[340497862,1729350633114,-166.18228735,0.0002378,2]
[340497864,1729350633124,-2000.0,0.0002378,2]
[340497865,1729350633133,-200.0,0.0002378,2]
[340497866,1729350633144,-927.276425,0.000238,2]
[340497867,1729350633154,-150.05,0.000238,2]
[340497868,1729350633164,-1998.0,0.000238,2]
[340497869,1729350633174,-375.9,0.00023819,2]
[340497870,1729350633183,-239.34,0.00023829,2]
[340497871,1729350633194,-151.0,0.0002385,7]
[340497872,1729350633203,-151.0,0.0002385,7]
[340497873,1729350633213,-151.0,0.0002386,7]
[340497874,1729350633223,-151.0,0.0002386,7]
[340497875,1729350633233,-151.0,0.0002386,7]
[340497876,1729350633244,-151.0,0.0002386,7]
[340497877,1729350633254,-186.44,0.0002386,2]
[340497878,1729350633264,-1120.175,0.00023864,2]
[340497879,1729350633274,-3358.0,0.00023864,2]
[340497880,1729350633283,-915.0,0.0002387,2]
[340497881,1729350633293,-151.0,0.0002387,7]
[340497882,1729350633303,-151.0,0.0002387,7]
[340497883,1729350633312,-151.0,0.0002387,7]
[340497884,1729350633321,-151.0,0.0002387,7]
[340497885,1729350633331,-151.0,0.0002387,7]
[340497886,1729350633340,-98983.2701126,0.0002387,5]
[340497887,1729350633350,-186.44,0.0002387,2]
[340497888,1729350633360,-186.44,0.0002387,2]
[340497889,1729350633370,-173.64348996,0.0002387,2]
[340497890,1729350633380,-151.48,0.0002387,2]
[340497891,1729350633390,-8850.424958,0.00023874,2]
[340497892,1729350633400,-1602.5388967,0.00023874,2]
[340497893,1729350633410,-3278.17814435,0.00023879,2]
[340497895,1729350633420,-500.0,0.00023879,2]
[340497896,1729350633429,-446.51448879,0.00023879,2]
[340497897,1729350633439,-23258.60056611,0.0002388,2]
[340497899,1729350633452,-594.99826677,0.0002388,2]
[340497901,1729350633464,-335.92939992,0.0002388,2]
[340497903,1729350633476,-348.89010204,0.0002388,2]
[340497905,1729350633501,-4000.0,0.0002388,2]
[340497907,1729350639055,-328.53229629,0.0002388,2]
[340497908,1729350639067,-1334.397,0.0002388,2]
[340497909,1729350639093,-999.15893992,0.0002388,2]
[340497910,1729350639104,-735.3530768,0.0002388,2]
[340497911,1729350639197,-35169.107285,0.0002388,2]
[340497912,1729350639208,-17211.16132549,0.0002388,2]
[340497913,1729350639218,-29060.5698021,0.0002388,2]
[340497914,1729350639757,-4104.54222375,0.0002388,2]
[340497915,1729350639773,-793.48923202,0.0002388,2]
[340497916,1729350639784,-46216.38576161,0.0002388,2]
[340497917,1729350639793,-1000.0,0.0002388,2]
[340497918,1729350639803,-1000.0,0.0002388,2]
[340497919,1729350639948,-1000.0,0.0002388,2]
[340497920,1729350639958,-1000.0,0.0002388,2]
[340497921,1729350639967,-1000.0,0.0002388,2]
[340497922,1729350639977,-1000.0,0.0002388,2]
[340497923,1729350639986,-1000.0,0.0002388,2]
[340497924,1729350639996,-1000.0,0.0002388,2]
[340497925,1729350640005,-1000.0,0.0002388,2]
[340497926,1729350640015,-1000.0,0.0002388,2]
[340497927,1729350640025,-1000.0,0.0002388,2]
[340497928,1729350640034,-1000.0,0.0002388,2]
[340497929,1729350640044,-1000.0,0.0002388,2]
[340497930,1729350640053,-1000.0,0.0002388,2]
[340497931,1729350640063,-1000.0,0.0002388,2]
[340497932,1729350640072,-1000.0,0.0002388,2]
[340497933,1729350640082,-1000.0,0.0002388,2]
[340497934,1729350640091,-1000.0,0.0002388,2]
[340497935,1729350640100,-1000.0,0.0002388,2]
[340497936,1729350640109,-1000.0,0.0002388,2]
[340497937,1729350640118,-1000.0,0.0002388,2]
[340497938,1729350640127,-1000.0,0.0002388,2]
[340497939,1729350640137,-1000.0,0.0002388,2]
[340497940,1729350640147,-1000.0,0.0002388,2]
[340497941,1729350640156,-1000.0,0.0002388,2]
[340497942,1729350640165,-1000.0,0.0002388,2]
[340497943,1729350640174,-1000.0,0.0002388,2]
[340497944,1729350640183,-1000.0,0.0002388,2]
[340497945,1729350640192,-1000.0,0.0002388,2]
[340497946,1729350640201,-1000.0,0.0002388,2]
[340497947,1729350640211,-1000.0,0.0002388,2]
[340497948,1729350640219,-1000.0,0.0002388,2]
[340497949,1729350640228,-1000.0,0.0002388,2]
[340497950,1729350640237,-1000.0,0.0002388,2]
[340497951,1729350640246,-421.90964626,0.0002388,2]
[340497952,1729350640255,-151.0,0.0002388,7]
[340497953,1729350640265,-151.0,0.0002388,7]
[340497954,1729350640276,-151.0,0.0002388,7]
[340497955,1729350640286,-151.0,0.0002388,7]
[340497956,1729350640296,-216.552652,0.0002388,7]
[340497957,1729350640305,-151.0,0.0002388,7]
[340497959,1729350640314,-151.0,0.0002388,7]
[340497960,1729350640323,-151.0,0.0002388,7]
[340497961,1729350640333,-151.0,0.0002388,7]
[340497962,1729350640342,-151.0,0.0002388,7]
[340497963,1729350640351,-151.0,0.0002388,7]
[340497964,1729350640361,-153.131706,0.0002388,7]
[340497965,1729350640370,-151.0,0.0002388,7]
[340497966,1729350640379,-151.0,0.0002388,7]
[340497967,1729350640389,-151.0,0.0002388,7]
[340497968,1729350640399,-12372.9087641,0.0002388,5]
[340497969,1729350640408,-4377.1781052,0.0002389,2]
[340497970,1729350640417,-3301.3663237,0.00023903,2]
[340497971,1729350640426,-150.0,0.00023906,2]
[340497972,1729350640435,-151.48,0.0002398,2]
[340497973,1729350640445,-151.48,0.0002398,2]
[340497974,1729350640454,-151.48,0.0002398,2]
[340497975,1729350640463,-30739.18350449,0.0002399,5]
[340497976,1729350640475,-13324.87158741,0.0002399,5]
[340497977,1729350640528,-5215.65516944,0.0002399,5]
[340497978,1729350640723,-74449.37737966,0.0002399,5]
[340497979,1729350640733,-22068.92262978,0.0002399,5]
[340497980,1729350640744,-18494.1,0.0002399,5]
[340497981,1729350640755,-1338.78,0.0002399,5]
[340497982,1729350640766,-3315.13781001,0.0002399,5]
[340497986,1729350644407,-7986.43481306,0.0002399,5]
[340497987,1729350644421,-1822.76089986,0.0002399,5]
[340497988,1729350644432,-772.82854254,0.0002399,5]
[340497989,1729350644444,-6655.27794624,0.0002399,5]
[340497990,1729350644456,-2320.0,0.0002399,5]
[340497991,1729350644476,-266.26,0.0002399,5]
[340497992,1729350644666,-876.12242975,0.0002399,5]
[340497993,1729350644678,-2864.9130586,0.0002399,5]
[340497994,1729350644689,-3476.5447,0.0002399,5]
[340497995,1729350644700,-2428.0,0.0002399,5]
[340498000,1729350646539,-250.0,0.00023689,2]
[340498001,1729350646548,-14.33999999,0.0002399,5]
[340498002,1729350646561,-1004.97915295,0.0002399,5]
[340498003,1729350646585,-1051.65600766,0.0002399,5]
[340498004,1729350646597,-801.58447701,0.0002399,5]
[340498005,1729350646839,-41460.48709755,0.0002399,5]
[340498006,1729350646849,-151.0,0.0002399,7]
[340498007,1729350646858,-151.0,0.0002399,7]
[340498008,1729350646868,-151.0,0.0002399,7]
[340498009,1729350646877,-151.0,0.0002399,7]
[340498010,1729350646886,-151.0,0.0002399,7]
[340498011,1729350646895,-151.48,0.0002399,2]
[340498012,1729350646904,-151.48,0.0002399,2]
[340498013,1729350646913,-151.48,0.0002399,2]
[340498014,1729350646923,-151.0,0.0002399,7]
[340498015,1729350646932,-151.0,0.0002399,7]
[340498016,1729350646944,-151.0,0.0002399,7]
[340498017,1729350646953,-151.0,0.0002399,7]
[340498018,1729350646962,-151.0,0.0002399,7]
[340498019,1729350646971,-500.0,0.00024,2]
[340498020,1729350646981,-37453.17722498,0.00024,2]
[340498021,1729350646993,-30039.13018329,0.00024,2]
[340498022,1729350647004,-3369.95,0.00024,2]
[340498023,1729350723281,800.0,0.00026986,120]
[340498024,1729350783990,800.0,0.00026986,120]
[340498025,1729350845642,800.0,0.00026986,120]
[340498026,1729350903969,800.0,0.00026986,120]
[340498027,1729350937637,610.55,0.00025508,120]
[340498028,1729350964089,800.0,0.00026986,120]
[340498029,1729351023234,800.0,0.00026986,120]
[340498030,1729351084828,800.0,0.00026986,120]
[340498031,1729351145467,800.0,0.00026986,120]
[340498032,1729351203239,800.0,0.00026986,120]
[340498033,1729351263036,800.0,0.00026986,120]
[340498034,1729351323428,800.0,0.00026986,120]
[340498035,1729351384285,800.0,0.00026986,120]
[340498036,1729351442857,800.0,0.00026986,120]
[340498037,1729351503977,800.0,0.00026986,120]
[340498038,1729351564551,800.0,0.00026986,120]
[340498039,1729351623275,150.5,0.00013397,30]
[340498040,1729351624403,800.0,0.00026986,120]
[340498041,1729351631131,-150.0,0.0001092,2]
[340498042,1729351631152,-170.61,0.00010959,2]
[340498043,1729351631173,-163.36,0.00010959,2]
[340498044,1729351631193,-981.84653601,0.00010959,2]
[340498045,1729351631213,-150.0,0.00010999,2]
[340498046,1729351631234,-500.0,0.00010999,2]
[340498047,1729351631254,-162.56014216,0.00010999,2]
[340498048,1729351631275,-500.0,0.00010999,2]
[340498049,1729351631302,-15310.22761256,0.00011,2]
[340498050,1729351631586,-41000.0,0.00011,2]
[340498051,1729351632131,-858.22652969,0.00011,2]
[340498052,1729351685401,800.0,0.00026986,120]
[340498053,1729351742565,150.5,0.00013374,30]
[340498054,1729351745258,800.0,0.00026986,120]
[340498055,1729351752118,-150.0,0.00010844,2]
[340498056,1729351752140,-168.12001863,0.000109,2]
[340498057,1729351752161,-171.00963363,0.000109,2]
[340498058,1729351752181,-479.44,0.00010959,2]
[340498059,1729351752202,-500.0,0.00010973,2]
[340498060,1729351752222,-159.49660892,0.00010973,2]
[340498061,1729351752245,-26094.55691882,0.00011,2]
[340498062,1729351770127,-2156.84914988,0.000109,2]
[340498063,1729351770148,-7124.37189721,0.000109,2]
[340498064,1729351770171,-187312.37130337,0.00011,2]
[340498066,1729351804256,800.0,0.00026986,120]
[340498081,1729351831662,-150.0,0.0001082,2]
[340498082,1729351831671,-500.0,0.00010973,2]
[340498083,1729351831681,-177.66837529,0.0001099,2]
[340498084,1729351831690,-150.0,0.00010999,2]
[340498085,1729351831700,-150.0,0.00010999,2]
[340498086,1729351831710,-150.0,0.00010999,2]
[340498087,1729351831719,-396831.03304798,0.00011,2]
[340498088,1729351831731,-147304.51288016,0.00011,2]
[340498089,1729351831742,-68270.13160753,0.00011,2]
[340498090,1729351831754,-1563.1042954,0.00011,2]
[340498091,1729351831767,-105796.89966395,0.00011,2]
[340498092,1729351831778,-89241.25913373,0.00011,2]
[340498093,1729351831789,-1938.3381967,0.00011,2]
[340498094,1729351831800,-261.44380006,0.00011,2]
[340498100,1729351831942,-1788.6891261,0.00011,2]
[340498102,1729351831954,-1819.03282774,0.00011,2]
[340498104,1729351831965,-2028.79395895,0.00011,2]
[340498144,1729351838250,-29867.23029264,0.00011,2]
[340498145,1729351838288,-38216.94903075,0.00011,2]
[340498146,1729351838322,-3243.407536,0.00011,2]
[340498147,1729351838334,-4032.83102732,0.00011,2]
[340498148,1729351839039,-1644246.22401894,0.00011,2]
[340498149,1729351839051,-1521760.5248572,0.00011,2]
[340498150,1729351839062,-314.863673,0.00011,2]
[340498151,1729351839075,-127011.64508232,0.00011,2]
[340498152,1729351839109,-2372.03258375,0.00011,2]
[340498153,1729351839234,-21688.03321184,0.00011,2]
[340498155,1729351839681,-650.5516089,0.00011,2]
[340498156,1729351839731,-273.79880008,0.00011,2]
[340498157,1729351839743,-1274.0382063,0.00011,2]
[340498158,1729351839754,-1023.770192,0.00011,2]
[340498159,1729351839886,-2710.49021726,0.00011,2]
[340498164,1729351842785,-316.04835033,0.000109,2]
[340498165,1729351842794,-152962.54721722,0.00011,2]
[340498166,1729351842826,-21229.53325824,0.00011,2]
[340498167,1729351842866,-66649.79202559,0.00011,2]
[340498168,1729351842904,-87262.15205245,0.00011,2]
[340498169,1729351842946,-1035951.76554337,0.00011,2]
[340498170,1729351842958,-1317.925,0.00011,2]